Workbook

Sheet Sheet1
A2: Наименование продукции | B2: Единица измерения | C2: указать город, для которого действительно данное предложение
C3: Цена за единицу продукции, в руб. с НДС | D3: Примечание
A5: Амбарная книга в линейку | B5: шт | C5: 6800 | F5: Надбавка | G5: 10
A6: Амбарная книга в клетку | B6: шт | C6: 98400 | F6: Комиссионные | G6: 15
A7: Антистеплер | B7: шт | C7: 190000
A8: Бумага для заметок с клеевым краем 38х51 (100 листов) | B8: шт | C8: 281600
A9: Бумага для заметок с клеевым краем 75х125 (100 листов) | B9: шт | C9: 373200
A10: Бумага для заметок с клеевым краем 75х75 (100 листов) | B10: шт | C10: 464800
A11: Бумага для заметок с клеевым краем 75х75 Z-сложения (100 листов) | B11: шт | C11: 556400
A12: Бумага для записей в прозрачном боксе 9*9*9, цветной | B12: шт | C12: 648000
A13: Бумага для записей 9*9*9, запасной блок, цветной | B13: шт | C13: 739600
A14: Бумага для записей 9*9*9, запасной блок, белый | C14: 831200
A15: Блокнот на спирали А4 | B15: шт | C15: 922800
A16: Блокнот на спирали А5 | B16: шт | C16: 1014400
A18: Блокнот на спирали А6 | B18: шт | C18: 1106000
A19: Вертикальный накопитель, картон, 75мм | B19: шт | C19: 1197600
B20: шт | C20: 1289200
B21: шт | C21: 1380800
B22: шт | C22: 1472400
B23: шт | C23: 1564000
B24: шт | C24: 1655600
A26: дата "___"_____________ 20___ г.
A28: Руководитель_______________________
A30: М.П.

Sheet Sheet2
A2: Наименование продукции | B2: Единица измерения | C2: указать город, для которого действительно данное предложение
C3: Цена за единицу продукции, в руб. с НДС | D3: Примечание
A5: =IF(Sheet1!A5=0,"",Sheet1!A5) -> Амбарная книга в линейку | B5: шт | C5: =IFERROR(((IF(Sheet1!A5=0,"",Sheet1!C5))*((100+Sheet1!G5)/100)*((100+Sheet1!G6)/100)),"") -> 8602 | D5: =IF(Sheet1!A5=0,"","-") -> -
A6: =IF(Sheet1!A6=0,"",Sheet1!A6) -> Амбарная книга в клетку | B6: шт | C6: =IFERROR(((IF(Sheet1!A6=0,"",Sheet1!C6))*((100+Sheet1!G6)/100)*((100+Sheet1!G7)/100)),"") -> 113160 | D6: =IF(Sheet1!A6=0,"","-") -> -
A7: =IF(Sheet1!A7=0,"",Sheet1!A7) -> Антистеплер | B7: шт | C7: =IFERROR(((IF(Sheet1!A7=0,"",Sheet1!C7))*((100+Sheet1!G7)/100)*((100+Sheet1!G8)/100)),"") -> 190000 | D7: =IF(Sheet1!A7=0,"","-") -> -
A8: =IF(Sheet1!A8=0,"",Sheet1!A8) -> Бумага для заметок с клеевым краем 38х51 (100 листов) | B8: шт | C8: =IFERROR(((IF(Sheet1!A8=0,"",Sheet1!C8))*((100+Sheet1!G8)/100)*((100+Sheet1!G9)/100)),"") -> 281600 | D8: =IF(Sheet1!A8=0,"","-") -> -
A9: =IF(Sheet1!A9=0,"",Sheet1!A9) -> Бумага для заметок с клеевым краем 75х125 (100 листов) | B9: шт | C9: =IFERROR(((IF(Sheet1!A9=0,"",Sheet1!C9))*((100+Sheet1!G9)/100)*((100+Sheet1!G10)/100)),"") -> 373200 | D9: =IF(Sheet1!A9=0,"","-") -> -
A10: =IF(Sheet1!A10=0,"",Sheet1!A10) -> Бумага для заметок с клеевым краем 75х75 (100 листов) | B10: шт | C10: =IFERROR(((IF(Sheet1!A10=0,"",Sheet1!C10))*((100+Sheet1!G10)/100)*((100+Sheet1!G11)/100)),"") -> 464800 | D10: =IF(Sheet1!A10=0,"","-") -> -
A11: =IF(Sheet1!A11=0,"",Sheet1!A11) -> Бумага для заметок с клеевым краем 75х75 Z-сложения (100 листов) | B11: шт | C11: =IFERROR(((IF(Sheet1!A11=0,"",Sheet1!C11))*((100+Sheet1!G11)/100)*((100+Sheet1!G12)/100)),"") -> 556400 | D11: =IF(Sheet1!A11=0,"","-") -> -
A12: =IF(Sheet1!A12=0,"",Sheet1!A12) -> Бумага для записей в прозрачном боксе 9*9*9, цветной | B12: шт | C12: =IFERROR(((IF(Sheet1!A12=0,"",Sheet1!C12))*((100+Sheet1!G12)/100)*((100+Sheet1!G13)/100)),"") -> 648000 | D12: =IF(Sheet1!A12=0,"","-") -> -
A13: =IF(Sheet1!A13=0,"",Sheet1!A13) -> Бумага для записей 9*9*9, запасной блок, цветной | B13: шт | C13: =IFERROR(((IF(Sheet1!A13=0,"",Sheet1!C13))*((100+Sheet1!G13)/100)*((100+Sheet1!G14)/100)),"") -> 739600 | D13: =IF(Sheet1!A13=0,"","-") -> -
A14: =IF(Sheet1!A14=0,"",Sheet1!A14) -> Бумага для записей 9*9*9, запасной блок, белый | C14: =IFERROR(((IF(Sheet1!A14=0,"",Sheet1!C14))*((100+Sheet1!G14)/100)*((100+Sheet1!G15)/100)),"") -> 831200 | D14: =IF(Sheet1!A14=0,"","-") -> -
A15: =IF(Sheet1!A15=0,"",Sheet1!A15) -> Блокнот на спирали А4 | B15: шт | C15: =IFERROR(((IF(Sheet1!A15=0,"",Sheet1!C15))*((100+Sheet1!G15)/100)*((100+Sheet1!G16)/100)),"") -> 922800 | D15: =IF(Sheet1!A15=0,"","-") -> -
A16: =IF(Sheet1!A16=0,"",Sheet1!A16) -> Блокнот на спирали А5 | B16: шт | C16: =IFERROR(((IF(Sheet1!A16=0,"",Sheet1!C16))*((100+Sheet1!G16)/100)*((100+Sheet1!G18)/100)),"") -> 1014400 | D16: =IF(Sheet1!A16=0,"","-") -> -
A18: =IF(Sheet1!A18=0,"",Sheet1!A18) -> Блокнот на спирали А6 | B18: шт | C18: =IFERROR(((IF(Sheet1!A18=0,"",Sheet1!C18))*((100+Sheet1!G18)/100)*((100+Sheet1!G19)/100)),"") -> 1106000 | D18: =IF(Sheet1!A18=0,"","-") -> -
A19: =IF(Sheet1!A19=0,"",Sheet1!A19) -> Вертикальный накопитель, картон, 75мм | B19: шт | C19: =IFERROR(((IF(Sheet1!A19=0,"",Sheet1!C19))*((100+Sheet1!G19)/100)*((100+Sheet1!G20)/100)),"") -> 1197600 | D19: =IF(Sheet1!A19=0,"","-") -> -
A20: =IF(Sheet1!A20=0,"",Sheet1!A20) ->  | B20: шт | C20: =IFERROR(((IF(Sheet1!A20=0,"",Sheet1!C20))*((100+Sheet1!G20)/100)*((100+Sheet1!G21)/100)),"") ->  | D20: =IF(Sheet1!A20=0,"","-") -> 
A21: =IF(Sheet1!A21=0,"",Sheet1!A21) ->  | B21: шт | C21: =IFERROR(((IF(Sheet1!A21=0,"",Sheet1!C21))*((100+Sheet1!G21)/100)*((100+Sheet1!G22)/100)),"") ->  | D21: =IF(Sheet1!A21=0,"","-") -> 
A22: =IF(Sheet1!A22=0,"",Sheet1!A22) ->  | B22: шт | C22: =IFERROR(((IF(Sheet1!A22=0,"",Sheet1!C22))*((100+Sheet1!G22)/100)*((100+Sheet1!G23)/100)),"") ->  | D22: =IF(Sheet1!A22=0,"","-") -> 
A23: =IF(Sheet1!A23=0,"",Sheet1!A23) ->  | B23: шт | C23: =IFERROR(((IF(Sheet1!A23=0,"",Sheet1!C23))*((100+Sheet1!G23)/100)*((100+Sheet1!G24)/100)),"") ->  | D23: =IF(Sheet1!A23=0,"","-") -> 
A24: =IF(Sheet1!A24=0,"",Sheet1!A24) ->  | B24: шт | C24: =IFERROR(((IF(Sheet1!A24=0,"",Sheet1!C24))*((100+Sheet1!G24)/100)*((100+Sheet1!G25)/100)),"") ->  | D24: =IF(Sheet1!A24=0,"","-") -> 
A26: дата "___"_____________ 20___ г.
A28: Руководитель_______________________
A30: М.П.
